{"text_format":"1","workbook":"xlsx","n_sheets":7,"sheets":["表紙","学生カード","自己採点シート","学習自己点検シート ","単位修得状況確認表（共通教育科目等）","単位修得状況確認表（専門教育科目）","累積グラフ"],"not_rendered":{"charts":10,"images":2,"macros":1,"external_links":0,"defined_names":5,"comments":0,"pivot_tables":0},"unopened":[],"bounds":{"document_bytes":16777216,"sheet_cells":100000,"rows_first":2000,"rows_last":500,"rows_between":2000,"halvings":0,"cell_chars":16384,"cell_head_chars":4096},"cells_cut":0,"cells_raw":0,"read":"whole","date_system":"1900"}

{"sheet":"表紙","index":0,"n_rows":34,"n_cols":2,"rows_kept":34,"cut":false,"hidden":false,"merged":[]}
[]
[]
[]
[]
[]
[]
[]
[]
[]
[]
[]
[null,"鹿児島大学工学部ポートフォリオ"]
[]
[]
[]
[]
[]
[]
[]
[]
[]
[]
[]
[]
[]
[]
[]
[]
[]
[]
[]
[null,"学科："]
[null,"氏名："]
[null,"学籍番号："]

{"sheet":"学生カード","index":1,"n_rows":62,"n_cols":10,"rows_kept":62,"cut":false,"hidden":false,"merged":[[9,0,16,0],[9,8,24,9],[14,5,14,7],[15,5,15,7],[17,0,24,0],[0,0,0,9],[3,0,3,1],[3,8,3,9],[4,6,8,6],[7,1,7,5],[31,0,42,0],[31,8,34,9],[40,6,40,9],[41,6,41,9],[22,5,22,7],[23,5,23,7],[25,0,30,0],[25,1,26,1],[25,2,26,2],[25,3,26,3],[25,4,26,7],[25,8,25,9],[26,8,26,9],[29,1,30,1],[29,2,30,2],[29,3,30,3],[43,0,54,0],[43,8,46,9],[52,6,52,9],[53,6,53,9],[55,0,55,9]]}
["学 生 カ ー ド"]
[]
["平成　　年度入学",null,null,null,null,null,null,null,null,"鹿児島大学工学部"]
[null,null,null,"学科","学籍番号",null,null,"指導教員名","㊞"]
[null,null,null,null,null,null,"男\n・\n女","本　籍"]
["ふりがな"]
["氏　　名",null,null,null,null,null,null,null,null,"都・道・府・県"]
["生年月日","昭和・平成 　　年　 　月　 　日生（　　　歳）"]
[null,"※戸籍記載のとおり",null,null,null,null,null,"※外国人は国籍名"]
["現 住 所",null,null,null,null,null,null,null,"写真貼付\n\nたて　５cm\nよこ　４cm"]
[null,"〒","－"]
[]
[]
[]
[null,null,null,null,"TEL","（　　　　　　　　　　　　）"]
[null,null,null,null,"携帯TEL","（　　　　　　　　　　　　）"]
[]
["住所変更"]
[null,"〒","－"]
[]
[]
[]
[null,null,null,null,"TEL","（　　　　　　　　　　　　）"]
[null,null,null,null,"携帯TEL","（　　　　　　　　　　　　）"]
[]
["履　　歴",null,"年","月","都・道・府・県",null,null,null,"　高等学校卒業等"]
[null,null,null,null,null,null,null,null,"　大学検定合格　"]
[null,null,"年","月"]
[null,null,"年","月"]
[null,null,"年","月"]
[]
["保証人\n（保護者）",null,null,null,null,null,null,null," 続柄"]
[null,"ふりがな"]
[null,"氏　名"]
[]
[]
[null,"住 所","〒","－"]
[]
[]
[]
[null,null,null,null,null,"T E L","（                                     )"]
[null,null,null,null,null,"携帯TEL","（                                     )"]
[]
["緊急時の\n連 絡 先\n（保証人\nとは別）",null,null,null,null,null,null,null," 続柄"]
[null,"ふりがな"]
[null,"氏　名"]
[]
[]
[null,"住 所","〒","－"]
[]
[]
[]
[null,null,null,null,null,"T E L","（                                     )"]
[null,null,null,null,null,"携帯TEL","（                                     )"]
[]
["大 学 側 記 入 欄"]
["　　年　　月　　日"]
["　　年　　月　　日"]
["注　１．本学生カードは２部作成し、１部を指導教員へ、もう１部は指導教員の認印を受けて４月１５日までに"]
["　　　　工学部学生係へ提出すること。"]
["　　２．住所を変更したら必ず工学部学生係へ申し出ること。"]
["　　３．本学生カードの記載情報は履修指導や生活指導の目的のみに使用されます。"]

{"sheet":"自己採点シート","index":2,"n_rows":24,"n_cols":21,"rows_kept":24,"cut":false,"hidden":false,"merged":[[16,2,16,5],[11,2,11,5],[12,2,12,5],[13,2,13,5],[14,2,14,5],[15,2,15,5],[23,2,23,5],[17,2,17,5],[18,2,18,5],[19,2,19,5],[20,2,20,5],[21,2,21,5],[22,2,22,5]]}
[]
[]
[null,"自己採点シート"]
[]
[null,null,null,null,null,null,null,"学籍番号",null,"氏名"]
[]
[null,"学生のみなさんへ"]
[null,null,"今期受講した科目に関して、以下の項目に対して自己採点をしてください。(１０点満点)"]
[]
[]
[]
[null,null,"項目",null,null,null,"2015年度\n前期","2015年度\n後期","2016年度\n前期","2016年度\n後期","2017年度\n前期","2017年度\n後期","2018年度\n前期","2018年度\n後期","2018年度\n前期","2018年度\n後期","2019年度\n前期","2019年度\n後期","2020年度\n前期","2020年度\n後期","卒業時"]
[null,1,"工学に関しての基礎知識\n（物理・化学・数学・情報など）"]
[null,2,"各工学分野での基礎知識\n（専門科目など）"]
[null,3,"人前での発表能力"]
[null,4,"人と話し合ったり議論する能力"]
[null,5,"チームの一員として取り組める（チームワーク）能力"]
[null,6,"英語、その他外国語による表現力"]
[null,7,"読書、講習会への参加、英会話や情報処理学習など大学以外での学習による自己啓発・生涯学習能力"]
[null,8,"社会性や国際感覚が身についているか。"]
[null,9,"倫理観、責任感がみについているか。"]
[null,10]
[null,11]
[null,12]

{"sheet":"学習自己点検シート ","index":3,"n_rows":67,"n_cols":12,"rows_kept":67,"cut":false,"hidden":false,"merged":[[7,2,7,12]]}
[]
[]
[null,"学習自己点検シート"]
[]
[null,null,null,null,null,null,null,null,null,"学籍番号",null,"氏名"]
[]
[null,"学生のみなさんへ"]
[null,null,"学生生活全般に関して自己点検をお願いしています。今期受講した科目に関して、以下の質問項目に答えてください。面談時、指導教員の先生方から回答に対する具体的なアドバイスを受けてください。"]
[]
[]
[null,"回答方法"]
[null,1,"今期の目標は達成できましたか。"]
[]
[]
[]
[]
[null,2,"講義への取り組みは積極的でしたか。また、積極的に取り組むことができなかった講義は具体的に何ですか。"]
[]
[]
[]
[]
[null,3,"講義毎に勉強方法がつかめていますか。"]
[]
[]
[]
[]
[null,4,"それぞれの講義の理解度は自分の目標に達していますか。理解度が足りないと感じている講義は何ですか。"]
[]
[]
[]
[]
[null,5,"平日（試験勉強以外）１日当たりの勉強時間（平均）はどのくらいですか。勉強時間が足りないと感じている講義は何ですか。"]
[]
[]
[]
[]
[null,6,"アルバイトと勉強は両立できましたか。"]
[]
[]
[]
[]
[null,7,"サークル活動と勉強は両立できましたか。"]
[]
[]
[]
[]
[null,8,"卒業後の進路についてどのように考えていますか。"]
[]
[]
[]
[]
[null,9,"その他、アドバイスが必要なことはありますか。"]
[]
[]
[]
[]
[null,10]
[]
[]
[]
[]
[null,11]
[]
[]
[]
[]
[null,12]

{"sheet":"単位修得状況確認表（共通教育科目等）","index":4,"n_rows":43,"n_cols":49,"rows_kept":43,"cut":false,"hidden":false,"merged":[[9,4,9,6],[6,1,9,3],[42,27,42,28],[42,29,42,30],[42,31,42,32],[42,33,42,34],[21,35,21,36],[21,37,21,38],[41,23,41,24],[41,25,41,26],[41,27,41,28],[41,29,41,30],[41,31,41,32],[41,33,41,34],[41,35,41,36],[41,37,41,38],[32,4,32,5],[24,4,24,5],[21,31,21,32],[21,33,21,34],[21,13,21,14],[23,1,29,3],[21,19,21,20],[23,4,23,5],[40,39,40,40],[42,0,42,6],[42,7,42,8],[42,9,42,10],[42,11,42,12],[42,13,42,14],[42,15,42,16],[41,19,41,20],[41,21,41,22],[42,17,42,18],[42,19,42,20],[42,21,42,22],[41,0,41,6],[41,7,41,8],[41,9,41,10],[41,11,41,12],[41,13,41,14],[41,15,41,16],[41,17,41,18],[42,35,42,36],[42,37,42,38],[42,23,42,24],[42,25,42,26],[30,1,30,6],[21,27,21,28],[21,29,21,30],[21,23,21,24],[21,25,21,26],[39,0,39,6],[19,41,22,41],[4,13,4,14],[4,15,4,16],[4,17,4,18],[21,4,22,5],[10,1,10,6],[16,1,16,6],[6,4,6,6],[21,15,21,16],[21,17,21,18],[2,39,5,39],[3,7,3,10],[3,11,3,14],[3,15,3,18],[3,19,3,22],[4,19,4,20],[4,21,4,22],[21,21,21,22],[34,4,34,5],[35,4,35,5],[31,1,35,3],[36,1,36,6],[33,4,33,5],[1,0,1,41],[37,0,37,6],[2,40,5,40],[2,41,5,41],[27,4,27,5],[29,4,29,5],[28,4,28,5],[31,4,31,5],[6,0,16,0],[17,0,17,6],[7,4,7,6],[8,4,8,6],[26,4,26,5],[19,0,20,6],[23,0,36,0],[11,4,12,4],[13,4,15,4],[15,5,15,6],[25,4,25,5],[11,1,15,3],[11,5,11,6],[12,5,12,6],[13,5,13,6],[14,5,14,6],[2,0,3,6],[19,39,22,39],[20,7,20,10],[20,11,20,14],[20,15,20,18],[20,19,20,22],[20,23,20,26],[20,27,20,30],[20,31,20,34],[20,35,20,38],[3,23,3,26],[3,27,3,30],[3,31,3,34],[3,35,3,38],[4,23,4,24],[4,25,4,26],[4,35,4,36],[4,37,4,38],[4,27,4,28],[4,29,4,30],[4,31,4,32],[4,33,4,34],[2,7,2,38],[23,45,36,45],[23,46,30,46],[31,46,36,46],[19,40,22,40],[21,7,21,8],[21,9,21,10],[21,11,21,12],[4,7,4,8],[4,9,4,10],[4,11,4,12],[12,43,14,43],[19,7,19,38]]}
[null,null,null,null,null,null,null,null,null,null,null,null,null,null,null,null,null,null,null,null,null,null,null,null,null,null,null,null,null,null,null,null,null,null,null,null,null,null,null,null,null,null,null,null,null,null,null,"A"]
["単位修得状況確認表（共通教育科目等）",null,null,null,null,null,null,null,null,null,null,null,null,null,null,null,null,null,null,null,null,null,null,null,null,null,null,null,null,null,null,null,null,null,null,null,null,null,null,null,null,null,null,null,null,null,null,"B"]
["共通教育科目・人間力養成プログラム",null,null,null,null,null,null,"取得単位数およびGP",null,null,null,null,null,null,null,null,null,null,null,null,null,null,null,null,null,null,null,null,null,null,null,null,null,null,null,null,null,null,null,"取得単位数","要修得\n単位数","累積GP",null,null,null,null,null,"C"]
[null,null,null,null,null,null,null,"　年次",null,null,null,"　年次",null,null,null,"　年次",null,null,null,"　年次",null,null,null,"　年次",null,null,null,"　年次",null,null,null,"　年次",null,null,null,"　年次",null,null,null,null,null,null,null,null,null,null,null,"D"]
[null,null,null,null,null,null,null,"１期",null,"２期",null,"３期",null,"４期",null,"５期",null,"６期",null,"７期",null,"８期",null,"９期",null,"10期",null,"11期",null,"12期",null,"13期",null,"14期",null,"15期",null,"16期",null,null,null,null,null,null,null,null,null,"F"]
[null,null,null,null,null,null,"　","単位","GP","単位","GP","単位","GP","単位","GP","単位","GP","単位","GP","単位","GP","単位","GP","単位","GP","単位","GP","単位","GP","単位","GP","単位","GP","単位","GP","単位","GP","単位","GP",null,null,null,null,null,null,null,null,"P"]
["共通教育科目","選択科目",null,null,"a 実践・判断・精神力",null,null,null,null,null,null,null,null,null,null,null,null,null,null,null,null,null,null,null,null,null,null,null,null,null,null,null,null,null,null,null,null,null,null,{"$f":"SUM(H7,J7,L7,N7,P7,R7,T7,V7,X7,Z7,AB7,AD7,AF7,AH7,AJ7,AL7)","v":0},4,null,null,"１．オレンジ枠に分野ごとの合計単位数を記入する。"]
[null,null,null,null,"b 知力（人文・社会科学）",null,null,null,null,null,null,null,null,null,null,null,null,null,null,null,null,null,null,null,null,null,null,null,null,null,null,null,null,null,null,null,null,null,null,0,6,null,null,"２．各科目の単位数を記入し、合計を計算する。"]
[null,null,null,null,"c 知力（自然科学）",null,null,null,null,null,null,null,null,null,null,null,null,null,null,null,null,null,null,null,null,null,null,null,null,null,null,null,null,null,null,null,null,null,null,0,6,null,null,"３．各科目のGPを記入し、合計を計算する。"]
[null,null,null,null,"うち、地域志向科目（選択必修科目）",null,null,null,null,null,null,null,null,null,null,null,null,null,null,null,null,null,null,null,null,null,null,null,null,null,null,null,null,null,null,null,null,null,null,{"$f":"SUM(H10,J10,L10,N10,P10,R10,T10,V10,X10,Z10,AB10,AD10,AF10,AH10,AJ10,AL10)","v":0},"［2］",null,null,"４．取得単位数を要取得単位数と比較する。"]
[null,"選択科目　計",null,null,null,null,null,null,null,null,null,null,null,null,null,null,null,null,null,null,null,null,null,null,null,null,null,null,null,null,null,null,null,null,null,null,null,null,null,0,16,{"$f":"SUM(I11,K11,M11,O11,Q11,S11,U11,W11,Y11,AA11,AC11,AE11,AG11,AI11,AK11,AM11)","v":0}]
[null,"選択必修\n科目",null,null,"d 身体力","理論",null,null,null,null,null,null,null,null,null,null,null,null,null,null,null,null,null,null,null,null,null,null,null,null,null,null,null,null,null,null,null,null,null,0,1]
[null,null,null,null,null,"実践",null,null,null,null,null,null,null,null,null,null,null,null,null,null,null,null,null,null,null,null,null,null,null,null,null,null,null,null,null,null,null,null,null,0,1,null,null,"※ 工学英語の成績は「第一外国語オープン」欄に記入する。"]
[null,null,null,null,"e コミュニケーション力","情報・通信を学ぶ",null,null,null,null,null,null,null,null,null,null,null,null,null,null,null,null,null,null,null,null,null,null,null,null,null,null,null,null,null,null,null,null,null,0,2]
[null,null,null,null,null,"第一外国語コア",null,null,null,null,null,null,null,null,null,null,null,null,null,null,null,null,null,null,null,null,null,null,null,null,null,null,null,null,null,null,null,null,null,0,4]
[null,null,null,null,null,"第一外国語オープン",null,null,null,null,null,null,null,null,null,null,null,null,null,null,null,null,null,null,null,null,null,null,null,null,null,null,null,null,null,null,null,null,null,0,4]
[null,"選択必修科目　計",null,null,null,null,null,null,null,null,null,null,null,null,null,null,null,null,null,null,null,null,null,null,null,null,null,null,null,null,null,null,null,null,null,null,null,null,null,0,12,{"$f":"SUM(I17,K17,M17,O17,Q17,S17,U17,W17,Y17,AA17,AC17,AE17,AG17,AI17,AK17,AM17)","v":0}]
["合計",null,null,null,null,null,null,null,null,null,null,null,null,null,null,null,null,null,null,null,null,null,null,null,null,null,null,null,null,null,null,null,null,null,null,null,null,null,null,0,28,{"$f":"SUM(I18,K18,M18,O18,Q18,S18,U18,W18,Y18,AA18,AC18,AE18,AG18,AI18,AK18,AM18)","v":0}]
[]
[" 基礎教育科目・専門基礎力養成プログラム",null,null,null,null,null,null,"履修科目の評価およびGP",null,null,null,null,null,null,null,null,null,null,null,null,null,null,null,null,null,null,null,null,null,null,null,null,null,null,null,null,null,null,null,"取得単位数","要修得\n単位数","累積GP"]
[null,null,null,null,null,null,null,"　年次",null,null,null,"　年次",null,null,null,"　年次",null,null,null,"　年次",null,null,null,"　年次",null,null,null,"　年次",null,null,null,"　年次",null,null,null,"　年次"]
[null,null,null,null,"授業科目",null,"単","１期",null,"２期",null,"３期",null,"４期",null,"５期",null,"６期",null,"７期",null,"８期",null,"９期",null,"10期",null,"11期",null,"12期",null,"13期",null,"14期",null,"15期",null,"16期"]
[null,null,null,null,null,null,"位","評価","GP","評価","GP","評価","GP","評価","GP","評価","GP","評価","GP","評価","GP","評価","GP","評価","GP","評価","GP","評価","GP","評価","GP","評価","GP","評価","GP","評価","GP","評価","GP"]
["基礎教育科目","単独必修科目",null,null,"微分積分学ＡⅠ",null,2,null,null,null,null,null,null,null,null,null,null,null,null,null,null,null,null,null,null,null,null,null,null,null,null,null,null,null,null,null,null,null,null,null,null,null,null,"１．黄色枠に各科目の評価を記入する。",null,"基礎教育科目","単独必修科目",589621032101,{"$f":"E24","v":"微分積分学ＡⅠ"}]
[null,null,null,null,"微分積分学ＡⅡ",null,2,null,null,null,null,null,null,null,null,null,null,null,null,null,null,null,null,null,null,null,null,null,null,null,null,null,null,null,null,null,null,null,null,null,null,null,null,"２．オレンジ枠に合計単位数を記入する。",null,null,null,589621032102,{"$f":"E25","v":"微分積分学ＡⅡ"}]
[null,null,null,null,"線形代数学Ⅰ",null,2,null,null,null,null,null,null,null,null,null,null,null,null,null,null,null,null,null,null,null,null,null,null,null,null,null,null,null,null,null,null,null,null,null,null,null,null,"３．各科目のGPを記入し、合計を計算する。",null,null,null,589621032106,"線形代数学Ⅰ"]
[null,null,null,null,"線形代数学Ⅱ",null,2,null,null,null,null,null,null,null,null,null,null,null,null,null,null,null,null,null,null,null,null,null,null,null,null,null,null,null,null,null,null,null,null,null,null,null,null,"４．取得単位数を要取得単位数と比較する。",null,null,null,589621032107,"線形代数学Ⅱ"]
[null,null,null,null,"物理学基礎ＡⅠ",null,2,null,null,null,null,null,null,null,null,null,null,null,null,null,null,null,null,null,null,null,null,null,null,null,null,null,null,null,null,null,null,null,null,null,null,null,null,null,null,null,null,589621033101,"物理学基礎ＡⅠ"]
[null,null,null,null,"物理学基礎ＡⅡ",null,2,null,null,null,null,null,null,null,null,null,null,null,null,null,null,null,null,null,null,null,null,null,null,null,null,null,null,null,null,null,null,null,null,null,null,null,null,null,null,null,null,589621033102,"物理学基礎ＡⅡ"]
[null,null,null,null,"物理学実験Ａ",null,2,null,null,null,null,null,null,null,null,null,null,null,null,null,null,null,null,null,null,null,null,null,null,null,null,null,null,null,null,null,null,null,null,null,null,null,null,null,null,null,null,589621033302,"物理学実験Ａ"]
[null,"単独必修科目　計",null,null,null,null,null,null,null,null,null,null,null,null,null,null,null,null,null,null,null,null,null,null,null,null,null,null,null,null,null,null,null,null,null,null,null,null,null,{"$f":"SUM(H31,J31,L31,N31,P31,R31,T31,V31,X31,Z31,AB31,AD31,AF31,AH31,AJ31,AL31)","v":0},14,{"$f":"SUM(I31,K31,M31,O31,Q31,S31,U31,W31,Y31,AA31,AC31,AE31,AG31,AI31,AK31,AM31)","v":0}]
[null,"選択必修科目",null,null,"統計学Ⅰ",null,2,null,null,null,null,null,null,null,null,null,null,null,null,null,null,null,null,null,null,null,null,null,null,null,null,null,null,null,null,null,null,null,null,null,null,null,null,null,null,null,"選択必修科目",589621031101,"統計学Ⅰ"]
[null,null,null,null,"生態学基礎",null,2,null,null,null,null,null,null,null,null,null,null,null,null,null,null,null,null,null,null,null,null,null,null,null,null,null,null,null,null,null,null,null,null,null,null,null,null,null,null,null,null,589621035101,"生態学基礎"]
[null,null,null,null,"化学実験B",null,1,null,null,null,null,null,null,null,null,null,null,null,null,null,null,null,null,null,null,null,null,null,null,null,null,null,null,null,null,null,null,null,null,null,null,null,null,null,null,null,null,589621034303,"化学実験B"]
[null,null,null,null,"生命科学実験B",null,1,null,null,null,null,null,null,null,null,null,null,null,null,null,null,null,null,null,null,null,null,null,null,null,null,null,null,null,null,null,null,null,null,null,null,null,null,null,null,null,null,589621035303,"生命科学実験B"]
[null,null,null,null,"地学実験B",null,1,null,null,null,null,null,null,null,null,null,null,null,null,null,null,null,null,null,null,null,null,null,null,null,null,null,null,null,null,null,null,null,null,null,null,null,null,null,null,null,null,589621036303,"地学実験B"]
[null,"選択必修科目　計",null,null,null,null,null,null,null,null,null,null,null,null,null,null,null,null,null,null,null,null,null,null,null,null,null,null,null,null,null,null,null,null,null,null,null,null,null,{"$f":"SUM(H37,J37,L37,N37,P37,R37,T37,V37,X37,Z37,AB37,AD37,AF37,AH37,AJ37,AL37)","v":0},2,{"$f":"SUM(I37,K37,M37,O37,Q37,S37,U37,W37,Y37,AA37,AC37,AE37,AG37,AI37,AK37,AM37)","v":0}]
["合計",null,null,null,null,null,null,null,null,null,null,null,null,null,null,null,null,null,null,null,null,null,null,null,null,null,null,null,null,null,null,null,null,null,null,null,null,null,null,{"$f":"SUM(H38,J38,L38,N38,P38,R38,T38,V38,X38,Z38,AB38,AD38,AF38,AH38,AJ38,AL38)","v":0},16,{"$f":"SUM(I38,K38,M38,O38,Q38,S38,U38,W38,Y38,AA38,AC38,AE38,AG38,AI38,AK38,AM38)","v":0}]
[]
["共通教育科目等合計",null,null,null,null,null,null,{"$f":"SUM(H18,H38)","v":0},0,0,0,0,0,0,0,0,0,0,0,0,0,0,0,0,0,0,0,0,0,0,0,0,0,0,0,0,0,0,0,{"$f":"SUM(H40,J40,L40,N40,P40,R40,T40,V40,X40,Z40,AB40,AD40,AF40,AH40,AJ40,AL40)","v":0},44,{"$f":"SUM(I40,K40,M40,O40,Q40,S40,U40,W40,Y40,AA40,AC40,AE40,AG40,AI40,AK40,AM40)","v":0}]
[]
["【共通教育科目等】評価Pの単位数",null,null,null,null,null,null,null,null,null,null,null,null,null,null,null,null,null,null,null,null,null,null,null,null,null,null,null,null,null,null,null,null,null,null,null,null,null,null,{"$f":"SUM(H42:AM42)","v":0}]
["【共通教育科目等】不合格（評価F）の単位数",null,null,null,null,null,null,null,null,null,null,null,null,null,null,null,null,null,null,null,null,null,null,null,null,null,null,null,null,null,null,null,null,null,null,null,null,null,null,{"$f":"SUM(H43:AM43)","v":0}]

{"sheet":"単位修得状況確認表（専門教育科目）","index":5,"n_rows":79,"n_cols":51,"rows_kept":79,"cut":false,"hidden":false,"merged":[[77,35,77,36],[77,37,77,38],[78,23,78,24],[78,25,78,26],[78,27,78,28],[78,29,78,30],[78,31,78,32],[78,33,78,34],[78,35,78,36],[78,37,78,38],[77,23,77,24],[77,25,77,26],[77,27,77,28],[77,29,77,30],[77,31,77,32],[77,33,77,34],[78,21,78,22],[78,0,78,6],[78,7,78,8],[78,9,78,10],[78,11,78,12],[78,13,78,14],[78,15,78,16],[60,0,60,6],[65,0,71,0],[78,17,78,18],[78,19,78,20],[46,0,58,0],[77,0,77,6],[77,19,77,20],[62,1,64,1],[65,1,71,1],[59,2,59,6],[46,1,59,1],[72,0,72,6],[62,0,64,0],[8,43,10,43],[36,0,36,6],[38,0,40,0],[6,0,35,0],[12,43,14,43],[15,43,18,43],[38,1,41,1],[42,0,44,0],[4,7,4,8],[41,2,41,6],[45,2,45,6],[42,1,45,1],[76,39,76,40],[4,15,4,16],[4,17,4,18],[4,19,4,20],[2,40,5,40],[4,21,4,22],[3,23,3,26],[4,35,4,36],[2,7,2,38],[4,37,4,38],[3,27,3,30],[3,31,3,34],[3,35,3,38],[4,23,4,24],[4,27,4,28],[4,29,4,30],[1,0,1,41],[2,0,5,0],[2,1,5,1],[2,39,5,39],[3,7,3,10],[3,11,3,14],[3,15,3,18],[4,9,4,10],[4,11,4,12],[4,13,4,14],[2,41,5,41],[3,19,3,22],[4,25,4,26],[4,31,4,32],[4,33,4,34],[77,21,77,22],[74,0,74,6],[75,0,75,6],[77,7,77,8],[77,9,77,10],[77,11,77,12],[77,13,77,14],[77,15,77,16],[77,17,77,18],[56,50,58,50],[65,46,71,46],[6,46,35,46],[38,46,41,46],[42,46,45,46],[46,46,59,46],[62,46,64,46]]}
[null,null,null,null,null,null,null,null,null,null,null,null,null,null,null,null,null,null,null,null,null,null,null,null,null,null,null,null,null,null,null,null,null,null,null,null,null,null,null,null,null,null,null,null,null,null,null,"A"]
["単位修得状況確認表（専門教育科目）",null,null,null,null,null,null,null,null,null,null,null,null,null,null,null,null,null,null,null,null,null,null,null,null,null,null,null,null,null,null,null,null,null,null,null,null,null,null,null,null,null,null,"１．黄色枠に各科目の評価を記入する。",null,null,null,"B"]
["科目群","区分","工 ","専","授","単","担","履修科目の評価およびGP",null,null,null,null,null,null,null,null,null,null,null,null,null,null,null,null,null,null,null,null,null,null,null,null,null,null,null,null,null,null,null,"取得単位数","要修得\n単位数","累積GP",null,"２．オレンジ枠に合計単位数を記入する。",null,null,null,"C"]
[null,null,"学 "," ","業"," ","当","　年次",null,null,null,"　年次",null,null,null,"　年次",null,null,null,"　年次",null,null,null,"　年次",null,null,null,"　年次",null,null,null,"　年次",null,null,null,"　年次",null,null,null,null,null,null,null,"３．各科目のGPを記入し、合計を計算する。",null,null,null,"D"]
[null,null,"基",null,"科",null,"教","１期",null,"２期",null,"３期",null,"４期",null,"５期",null,"６期",null,"７期",null,"８期",null,"９期",null,"10期",null,"11期",null,"12期",null,"13期",null,"14期",null,"15期",null,"16期",null,null,null,null,null,"４．取得単位数を要取得単位数と比較する。",null,null,null,"F"]
[null,null,"礎","門","目","位","員","評価","GP","評価","GP","評価","GP","評価","GP","評価","GP","評価","GP","評価","GP","評価","GP","評価","GP","評価","GP","評価","GP","評価","GP","評価","GP","評価","GP","評価","GP","評価","GP",null,null,null,null,null,null,null,null,"P"]
["必修科目"," "," ","○","フレッシュマンセミナー",2,"全教員 ",null,null,null,null,null,null,null,null,null,null,null,null,null,null,null,null,null,null,null,null,null,null,null,null,null,null,null,null,null,null,null,null,null,null,null,null,null,null,null,"必修科目 ",250152511101,{"$f":"E7","v":"フレッシュマンセミナー"}]
[null," ",null,"○","建築計画基礎演習",1,"木方・小山・増留",null,null,null,null,null,null,null,null,null,null,null,null,null,null,null,null,null,null,null,null,null,null,null,null,null,null,null,null,null,null,null,null,null,null,null,null,null,null,null,null,250092300001,{"$f":"E8","v":"建築計画基礎演習"}]
[null," "," ","○","設計基礎演習Ⅰ",1,"木方・西田*ほか ",null,null,null,null,null,null,null,null,null,null,null,null,null,null,null,null,null,null,null,null,null,null,null,null,null,null,null,null,null,null,null,null,null,null,null,null,"※ 期をまたがって開講される科目は、成績の\n　出された期に記入する。例えば通年の場合\n　後期に記入する。",null,null,null,250223000001,"設計基礎演習Ⅰ"]
[null," ",null,"○","建築構法",2,"黒川",null,null,null,null,null,null,null,null,null,null,null,null,null,null,null,null,null,null,null,null,null,null,null,null,null,null,null,null,null,null,null,null,null,null,null,null,null,null,null,null,259752311107,"建築構法"]
[null," "," ","○","設計基礎演習Ⅱ",1,"木方・鯵坂・増留",null,null,null,null,null,null,null,null,null,null,null,null,null,null,null,null,null,null,null,null,null,null,null,null,null,null,null,null,null,null,null,null,null,null,null,null,null,null,null,null,250223000009,"設計基礎演習Ⅱ"]
[null,"必",null,"○","建築の数学",2,"本間 ",null,null,null,null,null,null,null,null,null,null,null,null,null,null,null,null,null,null,null,null,null,null,null,null,null,null,null,null,null,null,null,null,null,null,null,null,null,null,null,null,250423000101,"建築の数学"]
[null," "," ","○","建築計画",2,"柴田",null,null,null,null,null,null,null,null,null,null,null,null,null,null,null,null,null,null,null,null,null,null,null,null,null,null,null,null,null,null,null,null,null,null,null,null,"※ 随意科目については、GPおよびGPAの計算に\n　含めない。また、進級・卒業要件には含まれない。",null,null,null,259752313118,"建築計画"]
[null," "," ","○","環境計画Ⅰ",2,"曽我 ",null,null,null,null,null,null,null,null,null,null,null,null,null,null,null,null,null,null,null,null,null,null,null,null,null,null,null,null,null,null,null,null,null,null,null,null,null,null,null,null,250223000101,"環境計画Ⅰ"]
[null," "," ","○","構造力学Ⅰ",2,"塩屋 ",null,null,null,null,null,null,null,null,null,null,null,null,null,null,null,null,null,null,null,null,null,null,null,null,null,null,null,null,null,null,null,null,null,null,null,null,null,null,null,null,259752311110,"構造力学Ⅰ"]
[null," "," ","○","建築設計Ⅰ",1,"鯵坂・柴田・根本*・増留ほか",null,null,null,null,null,null,null,null,null,null,null,null,null,null,null,null,null,null,null,null,null,null,null,null,null,null,null,null,null,null,null,null,null,null,null,null,"※ 評価Pの科目については、GPおよびGPAの計算に含まない。しかしながら、進級・卒業要件の累積単位数には含まれることがある（インターンシップ等）。",null,null,null,250072300010,"建築設計Ⅰ"]
[null,null," ","○","建築史",2,"木方",null,null,null,null,null,null,null,null,null,null,null,null,null,null,null,null,null,null,null,null,null,null,null,null,null,null,null,null,null,null,null,null,null,null,null,null,null,null,null,null,250323000101,"建築史"]
[null,null," ","○","環境工学Ⅰ",2,"曽我",null,null,null,null,null,null,null,null,null,null,null,null,null,null,null,null,null,null,null,null,null,null,null,null,null,null,null,null,null,null,null,null,null,null,null,null,null,null,null,null,259752314102,"環境工学Ⅰ"]
[null,"修"," ","○","構造力学Ⅱ",2,"本間 ",null,null,null,null,null,null,null,null,null,null,null,null,null,null,null,null,null,null,null,null,null,null,null,null,null,null,null,null,null,null,null,null,null,null,null,null,null,null,null,null,259752311108,"構造力学Ⅱ"]
[null,null," ","○","建築構造のしくみ",2,"本間 ",null,null,null,null,null,null,null,null,null,null,null,null,null,null,null,null,null,null,null,null,null,null,null,null,null,null,null,null,null,null,null,null,null,null,null,null,null,null,null,null,250423000110,"建築構造のしくみ"]
[null," ",null,"○","建築材料",2,"黒川",null,null,null,null,null,null,null,null,null,null,null,null,null,null,null,null,null,null,null,null,null,null,null,null,null,null,null,null,null,null,null,null,null,null,null,null,null,null,null,null,259752313122,"建築材料"]
[null,null," ","○","建築設計Ⅱ",2,"鯵坂・柴田・米永*・小山ほか",null,null,null,null,null,null,null,null,null,null,null,null,null,null,null,null,null,null,null,null,null,null,null,null,null,null,null,null,null,null,null,null,null,null,null,null,null,null,null,null,250072300015,"建築設計Ⅱ"]
[null,null," ","○","設備計画Ⅰ",2,"二宮",null,null,null,null,null,null,null,null,null,null,null,null,null,null,null,null,null,null,null,null,null,null,null,null,null,null,null,null,null,null,null,null,null,null,null,null,null,null,null,null,250223010021,"設備計画Ⅰ"]
[null,"科"," ","○","鉄骨構造",2,"澤田",null,null,null,null,null,null,null,null,null,null,null,null,null,null,null,null,null,null,null,null,null,null,null,null,null,null,null,null,null,null,null,null,null,null,null,null,null,null,null,null,250423000150,"鉄骨構造"]
[null," "," ","○","建築設計Ⅲ",2,"鯵坂・木方・西*・小山ほか",null,null,null,null,null,null,null,null,null,null,null,null,null,null,null,null,null,null,null,null,null,null,null,null,null,null,null,null,null,null,null,null,null,null,null,null,null,null,null,null,250072300020,"建築設計Ⅲ"]
[null," ",null,"○","建築施工",2,"迫田*",null,null,null,null,null,null,null,null,null,null,null,null,null,null,null,null,null,null,null,null,null,null,null,null,null,null,null,null,null,null,null,null,null,null,null,null,null,null,null,null,259152316103,"建築施工"]
[null,null,null,"○","都市計画",2,"小山",null,null,null,null,null,null,null,null,null,null,null,null,null,null,null,null,null,null,null,null,null,null,null,null,null,null,null,null,null,null,null,null,null,null,null,null,null,null,null,null,259752314116,"都市計画"]
[null,null," ","○","鉄筋コンクリート構造",2,"塩屋 ",null,null,null,null,null,null,null,null,null,null,null,null,null,null,null,null,null,null,null,null,null,null,null,null,null,null,null,null,null,null,null,null,null,null,null,null,null,null,null,null,250052311102,"鉄筋コンクリート構造"]
[null," ",null,"○","建築振動と防災",2,"澤田",null,null,null,null,null,null,null,null,null,null,null,null,null,null,null,null,null,null,null,null,null,null,null,null,null,null,null,null,null,null,null,null,null,null,null,null,null,null,null,null,250223000110,"建築振動と防災"]
[null,"目"," ","○","建築設計Ⅳ",2,"鯵坂・木方・高崎*・増留ほか",null,null,null,null,null,null,null,null,null,null,null,null,null,null,null,null,null,null,null,null,null,null,null,null,null,null,null,null,null,null,null,null,null,null,null,null,null,null,null,null,250072300025,"建築設計Ⅳ"]
[null," ","○"," ","建築英語Ⅱ",2,"全教員 ",null,null,null,null,null,null,null,null,null,null,null,null,null,null,null,null,null,null,null,null,null,null,null,null,null,null,null,null,null,null,null,null,null,null,null,null,null,null,null,null,250223000130,"建築英語Ⅱ"]
[null,null,null,"○","建築未来学概論",1,"全教員",null,null,null,null,null,null,null,null,null,null,null,null,null,null,null,null,null,null,null,null,null,null,null,null,null,null,null,null,null,null,null,null,null,null,null,null,null,null,null,null,null,"建築未来学概論"]
[null," ",null,"○","建築と倫理",2,"全教員",null,null,null,null,null,null,null,null,null,null,null,null,null,null,null,null,null,null,null,null,null,null,null,null,null,null,null,null,null,null,null,null,null,null,null,null,null,null,null,null,250423000120,"建築と倫理"]
[null,null,null,"○","建築法規",1,"上橋*",null,null,null,null,null,null,null,null,null,null,null,null,null,null,null,null,null,null,null,null,null,null,null,null,null,null,null,null,null,null,null,null,null,null,null,null,null,null,null,null,259752314111,"建築法規"]
[null,null," ","○","卒業論文",6,"全教員 ",null,null,null,null,null,null,null,null,null,null,null,null,null,null,null,null,null,null,null,null,null,null,null,null,null,null,null,null,null,null,null,null,null,null,null,null,null,null,null,null,259752311602,"卒業論文"]
[null," "," ","○","卒業設計",2,"全教員 ",null,null,null,null,null,null,null,null,null,null,null,null,null,null,null,null,null,null,null,null,null,null,null,null,null,null,null,null,null,null,null,null,null,null,null,null,null,null,null,null,259752311601,"卒業設計"]
["合計",null,null,null,null,null,null,null,null,null,null,null,null,null,null,null,null,null,null,null,null,null,null,null,null,null,null,null,null,null,null,null,null,null,null,null,null,null,null,{"$f":"SUM(H37,J37,L37,N37,P37,R37,T37,V37,X37,Z37,AB37,AD37,AF37,AH37,AJ37,AL37)","v":0},58,{"$f":"SUM(I37,K37,M37,O37,Q37,S37,U37,W37,Y37,AA37,AC37,AE37,AG37,AI37,AK37,AM37)","v":0}]
[]
["情報基礎科目群","選択科目Ａ群",null,"○","地域施設計画",2,"鯵坂",null,null,null,null,null,null,null,null,null,null,null,null,null,null,null,null,null,null,null,null,null,null,null,null,null,null,null,null,null,null,null,null,null,null,null,null,null,null,null,"選択科目Ａ群",259752314117,"地域施設計画"]
[null,null,null,"○","学外実習",1,"全教員",null,null,null,null,null,null,null,null,null,null,null,null,null,null,null,null,null,null,null,null,null,null,null,null,null,null,null,null,null,null,null,null,null,null,null,null,null,null,null,null,259752314401,"学外実習"]
[null,null,null,"○","地域環境史",2,"揚村*",null,null,null,null,null,null,null,null,null,null,null,null,null,null,null,null,null,null,null,null,null,null,null,null,null,null,null,null,null,null,null,null,null,null,null,null,null,null,null,null,259752314113,"地域環境史"]
["合計",null,"合計",null,null,null,null,null,null,null,null,null,null,null,null,null,null,null,null,null,null,null,null,null,null,null,null,null,null,null,null,null,null,null,null,null,null,null,null,{"$f":"SUM(H42,J42,L42,N42,P42,R42,T42,V42,X42,Z42,AB42,AD42,AF42,AH42,AJ42,AL42)","v":0},2,{"$f":"SUM(I42,K42,M42,O42,Q42,S42,U42,W42,Y42,AA42,AC42,AE42,AG42,AI42,AK42,AM42)","v":0}]
["ソフトウェアコア科目群","選択科目Ｂ群",null,"○","環境計画Ⅱ",2,"二宮",null,null,null,null,null,null,null,null,null,null,null,null,null,null,null,null,null,null,null,null,null,null,null,null,null,null,null,null,null,null,null,null,null,null,null,null,null,null,null,"選択科目Ｂ群",250223000102,"環境計画Ⅱ"]
[null,null,null,"○","環境工学Ⅱ",2,"曽我 ",null,null,null,null,null,null,null,null,null,null,null,null,null,null,null,null,null,null,null,null,null,null,null,null,null,null,null,null,null,null,null,null,null,null,null,null,null,null,null,null,259752314106,"環境工学Ⅱ"]
[null,null,null,"○","設備計画Ⅱ",2,"二宮",null,null,null,null,null,null,null,null,null,null,null,null,null,null,null,null,null,null,null,null,null,null,null,null,null,null,null,null,null,null,null,null,null,null,null,null,null,null,null,null,250223000150,"設備計画Ⅱ"]
["合計",null,"合計",null,null,null,null,null,null,null,null,null,null,null,null,null,null,null,null,null,null,null,null,null,null,null,null,null,null,null,null,null,null,null,null,null,null,null,null,{"$f":"SUM(H46,J46,L46,N46,P46,R46,T46,V46,X46,Z46,AB46,AD46,AF46,AH46,AJ46,AL46)","v":0},4,{"$f":"SUM(I46,K46,M46,O46,Q46,S46,U46,W46,Y46,AA46,AC46,AE46,AG46,AI46,AK46,AM46)","v":0}]
["情報システムコア科目群","選択科目Ｃ群",null,"○","建築デジタルデザイン論",1,"柴田",null,null,null,null,null,null,null,null,null,null,null,null,null,null,null,null,null,null,null,null,null,null,null,null,null,null,null,null,null,null,null,null,null,null,null,null,null,null,null,"選択科目Ｃ群",251330000005,"建築デジタルデザイン論"]
[null,null,null,"○","建築デザイン",2,"木方",null,null,null,null,null,null,null,null,null,null,null,null,null,null,null,null,null,null,null,null,null,null,null,null,null,null,null,null,null,null,null,null,null,null,null,null,null,null,null,null,259752313119,"建築デザイン"]
[null,null,null,"○","構造力学演習Ⅰ",1,"塩屋",null,null,null,null,null,null,null,null,null,null,null,null,null,null,null,null,null,null,null,null,null,null,null,null,null,null,null,null,null,null,null,null,null,null,null,null,null,null,null,null,259752311201,"構造力学演習Ⅰ"]
[null,null,null,"○","構造力学演習Ⅱ",1,"本間・横須賀",null,null,null,null,null,null,null,null,null,null,null,null,null,null,null,null,null,null,null,null,null,null,null,null,null,null,null,null,null,null,null,null,null,null,null,null,null,null,null,null,259752311202,"構造力学演習Ⅱ"]
[null,null,null,"○","構造力学Ⅲ",2,"本間",null,null,null,null,null,null,null,null,null,null,null,null,null,null,null,null,null,null,null,null,null,null,null,null,null,null,null,null,null,null,null,null,null,null,null,null,null,null,null,null,259132312101,"構造力学Ⅲ"]
[null,null,null,"○","建築材料の科学",2,"黒川",null,null,null,null,null,null,null,null,null,null,null,null,null,null,null,null,null,null,null,null,null,null,null,null,null,null,null,null,null,null,null,null,null,null,null,null,null,null,null,null,250523000101,"建築材料の科学"]
[null,null,null,"○","構造設計",2,"澤田",null,null,null,null,null,null,null,null,null,null,null,null,null,null,null,null,null,null,null,null,null,null,null,null,null,null,null,null,null,null,null,null,null,null,null,null,null,null,null,null,250072300005,"構造設計"]
[null,null,null,"○","建築実験",1,"塩屋・曽我ほか",null,null,null,null,null,null,null,null,null,null,null,null,null,null,null,null,null,null,null,null,null,null,null,null,null,null,null,null,null,null,null,null,null,null,null,null,null,null,null,null,259752313301,"建築実験"]
[null,null,null,"○","プログラミング演習",1,"本間・横須賀",null,null,null,null,null,null,null,null,null,null,null,null,null,null,null,null,null,null,null,null,null,null,null,null,null,null,null,null,null,null,null,null,null,null,null,null,null,null,null,null,259742311201,"プログラミング演習"]
[null,null,null,"○","基礎構造",2,"黒川",null,null,null,null,null,null,null,null,null,null,null,null,null,null,null,null,null,null,null,null,null,null,null,null,null,null,null,null,null,null,null,null,null,null,null,null,null,null,null,null,259152312103,"基礎構造"]
[null,null,null,"○","鉄筋コンクリート構造演習",1,"塩屋",null,null,null,null,null,null,null,null,null,null,null,null,null,null,null,null,null,null,null,null,null,null,null,null,null,null,null,null,null,null,null,null,null,null,null,null,null,null,null,null,250072300001,"鉄筋コンクリート構造演習","2件以上ヒット","鉄筋コンクリート構造演習 250072300001\n鉄筋コンクリート構造演習（建） 250152311201"]
[null,null,null,"○","建築物の耐震設計",2,"澤田",null,null,null,null,null,null,null,null,null,null,null,null,null,null,null,null,null,null,null,null,null,null,null,null,null,null,null,null,null,null,null,null,null,null,null,null,null,null,null,null,250423000130,"建築物の耐震設計"]
[null,null,null,"○","インターンシップ",1,"全教員",null,null,null,null,null,null,null,null,null,null,null,null,null,null,null,null,null,null,null,null,null,null,null,null,null,null,null,null,null,null,null,null,null,null,null,null,null,null,null,null,250223010041,"インターンシップ"]
["合計",null,"合計",null,null,null,null,null,null,null,null,null,null,null,null,null,null,null,null,null,null,null,null,null,null,null,null,null,null,null,null,null,null,null,null,null,null,null,null,{"$f":"SUM(H60,J60,L60,N60,P60,R60,T60,V60,X60,Z60,AB60,AD60,AF60,AH60,AJ60,AL60)","v":0},8,{"$f":"SUM(I60,K60,M60,O60,Q60,S60,U60,W60,Y60,AA60,AC60,AE60,AG60,AI60,AK60,AM60)","v":0}]
["Ａ群・Ｂ群・Ｃ群　合計",null,null,null,null,null,null,null,null,null,null,null,null,null,null,null,null,null,null,null,null,null,null,null,null,null,null,null,null,null,null,null,null,null,null,null,null,null,null,{"$f":"SUM(H61,J61,L61,N61,P61,R61,T61,V61,X61,Z61,AB61,AD61,AF61,AH61,AJ61,AL61)","v":0},14,{"$f":"SUM(I61,K61,M61,O61,Q61,S61,U61,W61,Y61,AA61,AC61,AE61,AG61,AI61,AK61,AM61)","v":0}]
[]
["情報生体システム科目群","選択科目Ｄ群","○"," ","情報システム",2,"未定*",null,null,null,null,null,null,null,null,null,null,null,null,null,null,null,null,null,null,null,null,null,null,null,null,null,null,null,null,null,null,null,null,null,null,null,null,null,null,null,"選択科目Ｄ群",259742312103,"情報システム"]
[null,null,"○"," ","化学基礎",2,"環化全教員*",null,null,null,null,null,null,null,null,null,null,null,null,null,null,null,null,null,null,null,null,null,null,null,null,null,null,null,null,null,null,null,null,null,null,null,null,null,null,null,null,250099110002,"化学基礎"]
[null,null,"○"," ","地球科学基礎",2,"浅野*・山城*・三隅*",null,null,null,null,null,null,null,null,null,null,null,null,null,null,null,null,null,null,null,null,null,null,null,null,null,null,null,null,null,null,null,null,null,null,null,null,null,null,null,null,250299110001,"地球科学基礎"]
["工学基礎・教養科目群","選択科目Ｅ群","○"," ","原子力・放射線と環境",2,"佐藤(紘)*",null,null,null,null,null,null,null,null,null,null,null,null,null,null,null,null,null,null,null,null,null,null,null,null,null,null,null,null,null,null,null,null,null,null,null,null,null,null,null,"選択科目Ｅ群",250042099101,"原子力・放射線と環境"]
[null,null,"○"," ","生産工学論",2," ",null,null,null,null,null,null,null,null,null,null,null,null,null,null,null,null,null,null,null,null,null,null,null,null,null,null,null,null,null,null,null,null,null,null,null,null,null,null,null,null,250299200001,"生産工学論"]
[null,null,"○"," ","エレクトロニクス論",2,null,null,null,null,null,null,null,null,null,null,null,null,null,null,null,null,null,null,null,null,null,null,null,null,null,null,null,null,null,null,null,null,null,null,null,null,null,null,null,null,null,250228100002,"エレクトロニクス論"]
[null,null,"○"," ","環境工学論",2," 全学科共通",null,null,null,null,null,null,null,null,null,null,null,null,null,null,null,null,null,null,null,null,null,null,null,null,null,null,null,null,null,null,null,null,null,null,null,null,null,null,null,null,250228100004,"環境工学論"]
[null,null,"○",null,"材料科学論",2," 科目を参照",null,null,null,null,null,null,null,null,null,null,null,null,null,null,null,null,null,null,null,null,null,null,null,null,null,null,null,null,null,null,null,null,null,null,null,null,null,null,null,null,250228100005,"材料科学論"]
[null,null,"○"," ","科学技術論",2," ",null,null,null,null,null,null,null,null,null,null,null,null,null,null,null,null,null,null,null,null,null,null,null,null,null,null,null,null,null,null,null,null,null,null,null,null,null,null,null,null,250228100006,"科学技術論"]
[null,null,"○"," ","エネルギー工学論",2,null,null,null,null,null,null,null,null,null,null,null,null,null,null,null,null,null,null,null,null,null,null,null,null,null,null,null,null,null,null,null,null,null,null,null,null,null,null,null,null,null,250228100003,{"$f":"E72","v":"エネルギー工学論"}]
["Ｄ群・Ｅ群　合計",null,null,null,null,null,null,null,null,null,null,null,null,null,null,null,null,null,null,null,null,null,null,null,null,null,null,null,null,null,null,null,null,null,null,null,null,null,null,{"$f":"SUM(H73,J73,L73,N73,P73,R73,T73,V73,X73,Z73,AB73,AD73,AF73,AH73,AJ73,AL73)","v":0},2,{"$f":"SUM(I73,K73,M73,O73,Q73,S73,U73,W73,Y73,AA73,AC73,AE73,AG73,AI73,AK73,AM73)","v":0}]
[]
["専門教育科目合計",null,null,null,null,null,null,{"$f":"SUM(H37,H61,H73)","v":0},0,0,0,0,0,0,0,0,0,0,0,0,0,0,0,0,0,0,0,0,0,0,0,0,0,0,0,0,0,0,0,{"$f":"SUM(H75,J75,L75,N75,P75,R75,T75,V75,X75,Z75,AB75,AD75,AF75,AH75,AJ75,AL75)","v":0},80,{"$f":"SUM(I75,K75,M75,O75,Q75,S75,U75,W75,Y75,AA75,AC75,AE75,AG75,AI75,AK75,AM75)","v":0}]
["修得総単位数",null,null,null,null,null,null,{"$f":"'単位修得状況確認表（共通教育科目等）'!H40+'単位修得状況確認表（専門教育科目）'!H75","v":0},{"$f":"'単位修得状況確認表（共通教育科目等）'!I40+'単位修得状況確認表（専門教育科目）'!I75","v":0},{"$f":"'単位修得状況確認表（共通教育科目等）'!J40+'単位修得状況確認表（専門教育科目）'!J75","v":0},{"$f":"'単位修得状況確認表（共通教育科目等）'!K40+'単位修得状況確認表（専門教育科目）'!K75","v":0},{"$f":"'単位修得状況確認表（共通教育科目等）'!L40+'単位修得状況確認表（専門教育科目）'!L75","v":0},{"$f":"'単位修得状況確認表（共通教育科目等）'!M40+'単位修得状況確認表（専門教育科目）'!M75","v":0},{"$f":"'単位修得状況確認表（共通教育科目等）'!N40+'単位修得状況確認表（専門教育科目）'!N75","v":0},{"$f":"'単位修得状況確認表（共通教育科目等）'!O40+'単位修得状況確認表（専門教育科目）'!O75","v":0},{"$f":"'単位修得状況確認表（共通教育科目等）'!P40+'単位修得状況確認表（専門教育科目）'!P75","v":0},{"$f":"'単位修得状況確認表（共通教育科目等）'!Q40+'単位修得状況確認表（専門教育科目）'!Q75","v":0},{"$f":"'単位修得状況確認表（共通教育科目等）'!R40+'単位修得状況確認表（専門教育科目）'!R75","v":0},{"$f":"'単位修得状況確認表（共通教育科目等）'!S40+'単位修得状況確認表（専門教育科目）'!S75","v":0},{"$f":"'単位修得状況確認表（共通教育科目等）'!T40+'単位修得状況確認表（専門教育科目）'!T75","v":0},{"$f":"'単位修得状況確認表（共通教育科目等）'!U40+'単位修得状況確認表（専門教育科目）'!U75","v":0},{"$f":"'単位修得状況確認表（共通教育科目等）'!V40+'単位修得状況確認表（専門教育科目）'!V75","v":0},{"$f":"'単位修得状況確認表（共通教育科目等）'!W40+'単位修得状況確認表（専門教育科目）'!W75","v":0},{"$f":"'単位修得状況確認表（共通教育科目等）'!X40+'単位修得状況確認表（専門教育科目）'!X75","v":0},{"$f":"'単位修得状況確認表（共通教育科目等）'!Y40+'単位修得状況確認表（専門教育科目）'!Y75","v":0},{"$f":"'単位修得状況確認表（共通教育科目等）'!Z40+'単位修得状況確認表（専門教育科目）'!Z75","v":0},{"$f":"'単位修得状況確認表（共通教育科目等）'!AA40+'単位修得状況確認表（専門教育科目）'!AA75","v":0},{"$f":"'単位修得状況確認表（共通教育科目等）'!AB40+'単位修得状況確認表（専門教育科目）'!AB75","v":0},{"$f":"'単位修得状況確認表（共通教育科目等）'!AC40+'単位修得状況確認表（専門教育科目）'!AC75","v":0},{"$f":"'単位修得状況確認表（共通教育科目等）'!AD40+'単位修得状況確認表（専門教育科目）'!AD75","v":0},{"$f":"'単位修得状況確認表（共通教育科目等）'!AE40+'単位修得状況確認表（専門教育科目）'!AE75","v":0},{"$f":"'単位修得状況確認表（共通教育科目等）'!AF40+'単位修得状況確認表（専門教育科目）'!AF75","v":0},{"$f":"'単位修得状況確認表（共通教育科目等）'!AG40+'単位修得状況確認表（専門教育科目）'!AG75","v":0},{"$f":"'単位修得状況確認表（共通教育科目等）'!AH40+'単位修得状況確認表（専門教育科目）'!AH75","v":0},{"$f":"'単位修得状況確認表（共通教育科目等）'!AI40+'単位修得状況確認表（専門教育科目）'!AI75","v":0},{"$f":"'単位修得状況確認表（共通教育科目等）'!AJ40+'単位修得状況確認表（専門教育科目）'!AJ75","v":0},{"$f":"'単位修得状況確認表（共通教育科目等）'!AK40+'単位修得状況確認表（専門教育科目）'!AK75","v":0},{"$f":"'単位修得状況確認表（共通教育科目等）'!AL40+'単位修得状況確認表（専門教育科目）'!AL75","v":0},{"$f":"'単位修得状況確認表（共通教育科目等）'!AM40+'単位修得状況確認表（専門教育科目）'!AM75","v":0},{"$f":"SUM(H76,J76,L76,N76,P76,R76,T76,V76,X76,Z76,AB76,AD76,AF76,AH76,AJ76,AL76)","v":0},124,{"$f":"SUM(I76,K76,M76,O76,Q76,S76,U76,W76,Y76,AA76,AC76,AE76,AG76,AI76,AK76,AM76)","v":0}]
[null,null,null,null,null,null,null,null,null,null,null,null,null,null,null,null,null,null,null,null,null,null,null,null,null,null,null,null,null,null,null,null,null,null,null,null,null,null,null,"累積GPA",null,{"$f":"IF(AN76-AN78>0,AP76/(AN76-AN78-'単位修得状況確認表（共通教育科目等）'!AN42+AN79+'単位修得状況確認表（共通教育科目等）'!AN43),\"\")","v":""}]
["【専門教育科目】評価Pの単位数",null,null,null,null,null,null,null,null,null,null,null,null,null,null,null,null,null,null,null,null,null,null,null,null,null,null,null,null,null,null,null,null,null,null,null,null,null,null,{"$f":"SUM(H78:AM78)","v":0}]
["【専門教育科目】不合格（評価F）の単位数",null,null,null,null,null,null,null,null,null,null,null,null,null,null,null,null,null,null,null,null,null,null,null,null,null,null,null,null,null,null,null,null,null,null,null,null,null,null,{"$f":"SUM(H79:AM79)","v":0}]

{"sheet":"累積グラフ","index":6,"n_rows":240,"n_cols":8,"rows_kept":240,"cut":false,"hidden":false,"merged":[[65,2,65,3],[65,4,65,5],[3,2,3,3],[3,4,3,5],[3,6,3,7],[34,2,34,3],[34,4,34,5]]}
[]
[null,"共通教育科目（選択科目）"]
[]
[null,null,"a 実践・判断・精神力",null,"b 知力（人文・社会科学）",null,"c 知力（自然科学）"]
[null,null,"取得単位数","累積取得単位数","取得単位数","累積取得単位数","取得単位数","累積取得単位数"]
[null,"1年前期終了時",{"$f":"'単位修得状況確認表（共通教育科目等）'!H7","v":0},{"$f":"SUM(C$6:C6)","v":0},{"$f":"'単位修得状況確認表（共通教育科目等）'!H8","v":0},{"$f":"SUM(E$6:E6)","v":0},{"$f":"'単位修得状況確認表（共通教育科目等）'!H9","v":0},{"$f":"SUM(G$6:G6)","v":0}]
[null,"1年後期終了時",{"$f":"'単位修得状況確認表（共通教育科目等）'!J7","v":0},{"$f":"SUM(C$6:C7)","v":0},{"$f":"'単位修得状況確認表（共通教育科目等）'!J8","v":0},{"$f":"SUM(E$6:E7)","v":0},{"$f":"'単位修得状況確認表（共通教育科目等）'!J9","v":0},{"$f":"SUM(G$6:G7)","v":0}]
[null,"2年前期終了時",{"$f":"'単位修得状況確認表（共通教育科目等）'!L7","v":0},{"$f":"SUM(C$6:C8)","v":0},{"$f":"'単位修得状況確認表（共通教育科目等）'!L8","v":0},{"$f":"SUM(E$6:E8)","v":0},{"$f":"'単位修得状況確認表（共通教育科目等）'!L9","v":0},{"$f":"SUM(G$6:G8)","v":0}]
[null,"2年後期終了時",{"$f":"'単位修得状況確認表（共通教育科目等）'!N7","v":0},{"$f":"SUM(C$6:C9)","v":0},{"$f":"'単位修得状況確認表（共通教育科目等）'!N8","v":0},{"$f":"SUM(E$6:E9)","v":0},{"$f":"'単位修得状況確認表（共通教育科目等）'!N9","v":0},{"$f":"SUM(G$6:G9)","v":0}]
[null,"３年前期終了時",{"$f":"'単位修得状況確認表（共通教育科目等）'!P7","v":0},{"$f":"SUM(C$6:C10)","v":0},{"$f":"'単位修得状況確認表（共通教育科目等）'!P8","v":0},{"$f":"SUM(E$6:E10)","v":0},{"$f":"'単位修得状況確認表（共通教育科目等）'!P9","v":0},{"$f":"SUM(G$6:G10)","v":0}]
[null,"３年後期終了時",{"$f":"'単位修得状況確認表（共通教育科目等）'!R7","v":0},{"$f":"SUM(C$6:C11)","v":0},{"$f":"'単位修得状況確認表（共通教育科目等）'!R8","v":0},{"$f":"SUM(E$6:E11)","v":0},{"$f":"'単位修得状況確認表（共通教育科目等）'!R9","v":0},{"$f":"SUM(G$6:G11)","v":0}]
[null,"4年前期終了時",{"$f":"'単位修得状況確認表（共通教育科目等）'!T7","v":0},{"$f":"SUM(C$6:C12)","v":0},{"$f":"'単位修得状況確認表（共通教育科目等）'!T8","v":0},{"$f":"SUM(E$6:E12)","v":0},{"$f":"'単位修得状況確認表（共通教育科目等）'!T9","v":0},{"$f":"SUM(G$6:G12)","v":0}]
[null,"4年後期終了時",{"$f":"'単位修得状況確認表（共通教育科目等）'!V7","v":0},{"$f":"SUM(C$6:C13)","v":0},{"$f":"'単位修得状況確認表（共通教育科目等）'!V8","v":0},{"$f":"SUM(E$6:E13)","v":0},{"$f":"'単位修得状況確認表（共通教育科目等）'!V9","v":0},{"$f":"SUM(G$6:G13)","v":0}]
[]
[]
[]
[]
[]
[]
[]
[]
[]
[]
[]
[]
[]
[]
[]
[]
[]
[]
[]
[null,"共通教育科目（選択必修科目）"]
[]
[null,null,"d 身体力",null,"e コミュニケーション力"]
[null,null,"取得単位数","累積取得単位数","取得単位数","累積取得単位数"]
[null,"1年前期終了時",{"$f":"SUM('単位修得状況確認表（共通教育科目等）'!H12:H13)","v":0},{"$f":"SUM(C$37:C37)","v":0},{"$f":"SUM('単位修得状況確認表（共通教育科目等）'!H14:H16)","v":0},{"$f":"SUM(E$37:E37)","v":0}]
[null,"1年後期終了時",{"$f":"SUM('単位修得状況確認表（共通教育科目等）'!J12:J13)","v":0},{"$f":"SUM(C$37:C38)","v":0},{"$f":"SUM('単位修得状況確認表（共通教育科目等）'!J14:J16)","v":0},{"$f":"SUM(E$37:E38)","v":0}]
[null,"2年前期終了時",{"$f":"SUM('単位修得状況確認表（共通教育科目等）'!L12:L13)","v":0},{"$f":"SUM(C$37:C39)","v":0},{"$f":"SUM('単位修得状況確認表（共通教育科目等）'!L14:L16)","v":0},{"$f":"SUM(E$37:E39)","v":0}]
[null,"2年後期終了時",{"$f":"SUM('単位修得状況確認表（共通教育科目等）'!N12:N13)","v":0},{"$f":"SUM(C$37:C40)","v":0},{"$f":"SUM('単位修得状況確認表（共通教育科目等）'!N14:N16)","v":0},{"$f":"SUM(E$37:E40)","v":0}]
[null,"３年前期終了時",{"$f":"SUM('単位修得状況確認表（共通教育科目等）'!P12:P13)","v":0},{"$f":"SUM(C$37:C41)","v":0},{"$f":"SUM('単位修得状況確認表（共通教育科目等）'!P14:P16)","v":0},{"$f":"SUM(E$37:E41)","v":0}]
[null,"３年後期終了時",{"$f":"SUM('単位修得状況確認表（共通教育科目等）'!R12:R13)","v":0},{"$f":"SUM(C$37:C42)","v":0},{"$f":"SUM('単位修得状況確認表（共通教育科目等）'!R14:R16)","v":0},{"$f":"SUM(E$37:E42)","v":0}]
[null,"4年前期終了時",{"$f":"SUM('単位修得状況確認表（共通教育科目等）'!T12:T13)","v":0},{"$f":"SUM(C$37:C43)","v":0},{"$f":"SUM('単位修得状況確認表（共通教育科目等）'!T14:T16)","v":0},{"$f":"SUM(E$37:E43)","v":0}]
[null,"4年後期終了時",{"$f":"SUM('単位修得状況確認表（共通教育科目等）'!V12:V13)","v":0},{"$f":"SUM(C$37:C44)","v":0},{"$f":"SUM('単位修得状況確認表（共通教育科目等）'!V14:V16)","v":0},{"$f":"SUM(E$37:E44)","v":0}]
[]
[]
[]
[]
[]
[]
[]
[]
[]
[]
[]
[]
[]
[]
[]
[]
[]
[]
[]
[null,"基礎教育科目"]
[]
[null,null,"単独必修科目",null,"選択必修科目"]
[null,null,"取得単位数","累積取得単位数","取得単位数","累積取得単位数"]
[null,"1年前期終了時",{"$f":"'単位修得状況確認表（共通教育科目等）'!H31","v":0},{"$f":"SUM(C$68:C68)","v":0},{"$f":"'単位修得状況確認表（共通教育科目等）'!H37","v":0},{"$f":"SUM(E$68:E68)","v":0}]
[null,"1年後期終了時",{"$f":"'単位修得状況確認表（共通教育科目等）'!J31","v":0},{"$f":"SUM(C$68:C69)","v":0},{"$f":"'単位修得状況確認表（共通教育科目等）'!J37","v":0},{"$f":"SUM(E$68:E69)","v":0}]
[null,"2年前期終了時",{"$f":"'単位修得状況確認表（共通教育科目等）'!L31","v":0},{"$f":"SUM(C$68:C70)","v":0},{"$f":"'単位修得状況確認表（共通教育科目等）'!L37","v":0},{"$f":"SUM(E$68:E70)","v":0}]
[null,"2年後期終了時",{"$f":"'単位修得状況確認表（共通教育科目等）'!N31","v":0},{"$f":"SUM(C$68:C71)","v":0},{"$f":"'単位修得状況確認表（共通教育科目等）'!N37","v":0},{"$f":"SUM(E$68:E71)","v":0}]
[null,"３年前期終了時",{"$f":"'単位修得状況確認表（共通教育科目等）'!P31","v":0},{"$f":"SUM(C$68:C72)","v":0},{"$f":"'単位修得状況確認表（共通教育科目等）'!P37","v":0},{"$f":"SUM(E$68:E72)","v":0}]
[null,"３年後期終了時",{"$f":"'単位修得状況確認表（共通教育科目等）'!R31","v":0},{"$f":"SUM(C$68:C73)","v":0},{"$f":"'単位修得状況確認表（共通教育科目等）'!R37","v":0},{"$f":"SUM(E$68:E73)","v":0}]
[null,"4年前期終了時",{"$f":"'単位修得状況確認表（共通教育科目等）'!T31","v":0},{"$f":"SUM(C$68:C74)","v":0},{"$f":"'単位修得状況確認表（共通教育科目等）'!T37","v":0},{"$f":"SUM(E$68:E74)","v":0}]
[null,"4年後期終了時",{"$f":"'単位修得状況確認表（共通教育科目等）'!V31","v":0},{"$f":"SUM(C$68:C75)","v":0},{"$f":"'単位修得状況確認表（共通教育科目等）'!V37","v":0},{"$f":"SUM(E$68:E75)","v":0}]
[]
[]
[]
[]
[]
[]
[]
[]
[]
[]
[]
[]
[]
[]
[]
[]
[]
[]
[]
[]
[]
[null,"必修科目"]
[]
[null,null,"取得単位数","累積取得単位数"]
[null,"1年前期終了時",{"$f":"'単位修得状況確認表（専門教育科目）'!H37","v":0},{"$f":"SUM(C$100:C100)","v":0}]
[null,"1年後期終了時",{"$f":"'単位修得状況確認表（専門教育科目）'!J37","v":0},{"$f":"SUM(C$100:C101)","v":0}]
[null,"2年前期終了時",{"$f":"'単位修得状況確認表（専門教育科目）'!L37","v":0},{"$f":"SUM(C$100:C102)","v":0}]
[null,"2年後期終了時",{"$f":"'単位修得状況確認表（専門教育科目）'!N37","v":0},{"$f":"SUM(C$100:C103)","v":0}]
[null,"３年前期終了時",{"$f":"'単位修得状況確認表（専門教育科目）'!P37","v":0},{"$f":"SUM(C$100:C104)","v":0}]
[null,"３年後期終了時",{"$f":"'単位修得状況確認表（専門教育科目）'!R37","v":0},{"$f":"SUM(C$100:C105)","v":0}]
[null,"4年前期終了時",{"$f":"'単位修得状況確認表（専門教育科目）'!T37","v":0},{"$f":"SUM(C$100:C106)","v":0}]
[null,"4年後期終了時",{"$f":"'単位修得状況確認表（専門教育科目）'!V37","v":0},{"$f":"SUM(C$100:C107)","v":0}]
[]
[]
[]
[]
[]
[]
[]
[]
[]
[]
[]
[]
[]
[]
[]
[null,"選択科目A群"]
[]
[null,null,"取得単位数","累積取得単位数"]
[null,"1年前期終了時",{"$f":"'単位修得状況確認表（専門教育科目）'!H42","v":0},{"$f":"SUM(C$126:C126)","v":0}]
[null,"1年後期終了時",{"$f":"'単位修得状況確認表（専門教育科目）'!J42","v":0},{"$f":"SUM(C$126:C127)","v":0}]
[null,"2年前期終了時",{"$f":"'単位修得状況確認表（専門教育科目）'!L42","v":0},{"$f":"SUM(C$126:C128)","v":0}]
[null,"2年後期終了時",{"$f":"'単位修得状況確認表（専門教育科目）'!N42","v":0},{"$f":"SUM(C$126:C129)","v":0}]
[null,"３年前期終了時",{"$f":"'単位修得状況確認表（専門教育科目）'!P42","v":0},{"$f":"SUM(C$126:C130)","v":0}]
[null,"３年後期終了時",{"$f":"'単位修得状況確認表（専門教育科目）'!R42","v":0},{"$f":"SUM(C$126:C131)","v":0}]
[null,"4年前期終了時",{"$f":"'単位修得状況確認表（専門教育科目）'!T42","v":0},{"$f":"SUM(C$126:C132)","v":0}]
[null,"4年後期終了時",{"$f":"'単位修得状況確認表（専門教育科目）'!V42","v":0},{"$f":"SUM(C$126:C133)","v":0}]
[]
[]
[]
[]
[]
[]
[]
[null,"選択科目B群"]
[]
[null,null,"取得単位数","累積取得単位数"]
[null,"1年前期終了時",{"$f":"'単位修得状況確認表（専門教育科目）'!H46","v":0},{"$f":"SUM(C$144:C144)","v":0}]
[null,"1年後期終了時",{"$f":"'単位修得状況確認表（専門教育科目）'!J46","v":0},{"$f":"SUM(C$144:C145)","v":0}]
[null,"2年前期終了時",{"$f":"'単位修得状況確認表（専門教育科目）'!L46","v":0},{"$f":"SUM(C$144:C146)","v":0}]
[null,"2年後期終了時",{"$f":"'単位修得状況確認表（専門教育科目）'!N46","v":0},{"$f":"SUM(C$144:C147)","v":0}]
[null,"３年前期終了時",{"$f":"'単位修得状況確認表（専門教育科目）'!P46","v":0},{"$f":"SUM(C$144:C148)","v":0}]
[null,"３年後期終了時",{"$f":"'単位修得状況確認表（専門教育科目）'!R46","v":0},{"$f":"SUM(C$144:C149)","v":0}]
[null,"4年前期終了時",{"$f":"'単位修得状況確認表（専門教育科目）'!T46","v":0},{"$f":"SUM(C$144:C150)","v":0}]
[null,"4年後期終了時",{"$f":"'単位修得状況確認表（専門教育科目）'!V46","v":0},{"$f":"SUM(C$144:C151)","v":0}]
[]
[]
[]
[]
[]
[]
[]
[]
[null,"選択科目C群"]
[]
[null,null,"取得単位数","累積取得単位数"]
[null,"1年前期終了時",{"$f":"'単位修得状況確認表（専門教育科目）'!H60","v":0},{"$f":"SUM(C$163:C163)","v":0}]
[null,"1年後期終了時",{"$f":"'単位修得状況確認表（専門教育科目）'!J60","v":0},{"$f":"SUM(C$163:C164)","v":0}]
[null,"2年前期終了時",{"$f":"'単位修得状況確認表（専門教育科目）'!L60","v":0},{"$f":"SUM(C$163:C165)","v":0}]
[null,"2年後期終了時",{"$f":"'単位修得状況確認表（専門教育科目）'!N60","v":0},{"$f":"SUM(C$163:C166)","v":0}]
[null,"３年前期終了時",{"$f":"'単位修得状況確認表（専門教育科目）'!P60","v":0},{"$f":"SUM(C$163:C167)","v":0}]
[null,"３年後期終了時",{"$f":"'単位修得状況確認表（専門教育科目）'!R60","v":0},{"$f":"SUM(C$163:C168)","v":0}]
[null,"4年前期終了時",{"$f":"'単位修得状況確認表（専門教育科目）'!T60","v":0},{"$f":"SUM(C$163:C169)","v":0}]
[null,"4年後期終了時",{"$f":"'単位修得状況確認表（専門教育科目）'!V60","v":0},{"$f":"SUM(C$163:C170)","v":0}]
[]
[]
[]
[]
[]
[]
[]
[null,"選択科目D群・E群"]
[]
[null,null,"取得単位数","累積取得単位数"]
[null,"1年前期終了時",{"$f":"'単位修得状況確認表（専門教育科目）'!H73","v":0},{"$f":"SUM(C$181:C181)","v":0}]
[null,"1年後期終了時",{"$f":"'単位修得状況確認表（専門教育科目）'!J73","v":0},{"$f":"SUM(C$181:C182)","v":0}]
[null,"2年前期終了時",{"$f":"'単位修得状況確認表（専門教育科目）'!L73","v":0},{"$f":"SUM(C$181:C183)","v":0}]
[null,"2年後期終了時",{"$f":"'単位修得状況確認表（専門教育科目）'!N73","v":0},{"$f":"SUM(C$181:C184)","v":0}]
[null,"３年前期終了時",{"$f":"'単位修得状況確認表（専門教育科目）'!P73","v":0},{"$f":"SUM(C$181:C185)","v":0}]
[null,"３年後期終了時",{"$f":"'単位修得状況確認表（専門教育科目）'!R73","v":0},{"$f":"SUM(C$181:C186)","v":0}]
[null,"4年前期終了時",{"$f":"'単位修得状況確認表（専門教育科目）'!T73","v":0},{"$f":"SUM(C$181:C187)","v":0}]
[null,"4年後期終了時",{"$f":"'単位修得状況確認表（専門教育科目）'!V73","v":0},{"$f":"SUM(C$181:C188)","v":0}]
[]
[]
[]
[]
[]
[]
[]
[]
[]
[null,"累積単位数"]
[]
[null,null,"取得単位数","累積取得単位数"]
[null,"1年前期終了時",{"$f":"SUM(C6,E6,G6,C37,E37,C68,E68,C100,C126,C144,C163,C181)","v":0},{"$f":"SUM(C$201:C201)","v":0}]
[null,"1年後期終了時",0,{"$f":"SUM(C$201:C202)","v":0}]
[null,"2年前期終了時",0,{"$f":"SUM(C$201:C203)","v":0}]
[null,"2年後期終了時",0,{"$f":"SUM(C$201:C204)","v":0}]
[null,"３年前期終了時",0,{"$f":"SUM(C$201:C205)","v":0}]
[null,"３年後期終了時",0,{"$f":"SUM(C$201:C206)","v":0}]
[null,"4年前期終了時",0,{"$f":"SUM(C$201:C207)","v":0}]
[null,"4年後期終了時",0,{"$f":"SUM(C$201:C208)","v":0}]
[]
[]
[]
[]
[]
[]
[]
[]
[]
[]
[]
[]
[]
[]
[]
[]
[]
[]
[]
[]
[]
[null,"GPA"]
[]
[null,null,"累積GP","累積GPA","GPA累積単位数","累積P","累積F"]
[null,"1年前期終了時",{"$f":"'単位修得状況確認表（共通教育科目等）'!I18+'単位修得状況確認表（共通教育科目等）'!I38+'単位修得状況確認表（専門教育科目）'!I37+'単位修得状況確認表（専門教育科目）'!I61+'単位修得状況確認表（専門教育科目）'!I73","v":0},{"$f":"IF(E233=0,\"\",C233/E233)","v":""},{"$f":"D201-F233+G233","v":0},{"$f":"SUM('単位修得状況確認表（共通教育科目等）'!H42,'単位修得状況確認表（専門教育科目）'!H78)","v":0},{"$f":"SUM('単位修得状況確認表（共通教育科目等）'!H43,'単位修得状況確認表（専門教育科目）'!H79)","v":0}]
[null,"1年後期終了時",{"$f":"C233+'単位修得状況確認表（共通教育科目等）'!K18+'単位修得状況確認表（共通教育科目等）'!K38+'単位修得状況確認表（専門教育科目）'!K37+'単位修得状況確認表（専門教育科目）'!K61+'単位修得状況確認表（専門教育科目）'!K73","v":0},"",{"$f":"D202-F234+G234","v":0},{"$f":"SUM(F233,'単位修得状況確認表（共通教育科目等）'!J42,'単位修得状況確認表（専門教育科目）'!J78)","v":0},{"$f":"SUM(G233,'単位修得状況確認表（共通教育科目等）'!J43,'単位修得状況確認表（専門教育科目）'!J79)","v":0}]
[null,"2年前期終了時",{"$f":"C234+'単位修得状況確認表（共通教育科目等）'!M18+'単位修得状況確認表（共通教育科目等）'!M38+'単位修得状況確認表（専門教育科目）'!M37+'単位修得状況確認表（専門教育科目）'!M61+'単位修得状況確認表（専門教育科目）'!M73","v":0},"",{"$f":"D203-F235+G235","v":0},{"$f":"SUM(F234,'単位修得状況確認表（共通教育科目等）'!L42,'単位修得状況確認表（専門教育科目）'!L78)","v":0},{"$f":"SUM(G234,'単位修得状況確認表（共通教育科目等）'!L43,'単位修得状況確認表（専門教育科目）'!L79)","v":0}]
[null,"2年後期終了時",{"$f":"C235+'単位修得状況確認表（共通教育科目等）'!O18+'単位修得状況確認表（共通教育科目等）'!O38+'単位修得状況確認表（専門教育科目）'!O37+'単位修得状況確認表（専門教育科目）'!O61+'単位修得状況確認表（専門教育科目）'!O73","v":0},"",0,{"$f":"SUM(F235,'単位修得状況確認表（共通教育科目等）'!N42,'単位修得状況確認表（専門教育科目）'!N78)","v":0},{"$f":"SUM(G235,'単位修得状況確認表（共通教育科目等）'!N43,'単位修得状況確認表（専門教育科目）'!N79)","v":0}]
[null,"３年前期終了時",{"$f":"C236+'単位修得状況確認表（共通教育科目等）'!Q18+'単位修得状況確認表（共通教育科目等）'!Q38+'単位修得状況確認表（専門教育科目）'!Q37+'単位修得状況確認表（専門教育科目）'!Q61+'単位修得状況確認表（専門教育科目）'!Q73","v":0},"",0,{"$f":"SUM(F236,'単位修得状況確認表（共通教育科目等）'!P42,'単位修得状況確認表（専門教育科目）'!P78)","v":0},{"$f":"SUM(G236,'単位修得状況確認表（共通教育科目等）'!P43,'単位修得状況確認表（専門教育科目）'!P79)","v":0}]
[null,"３年後期終了時",{"$f":"C237+'単位修得状況確認表（共通教育科目等）'!S18+'単位修得状況確認表（共通教育科目等）'!S38+'単位修得状況確認表（専門教育科目）'!S37+'単位修得状況確認表（専門教育科目）'!S61+'単位修得状況確認表（専門教育科目）'!S73","v":0},"",0,{"$f":"SUM(F237,'単位修得状況確認表（共通教育科目等）'!R42,'単位修得状況確認表（専門教育科目）'!R78)","v":0},{"$f":"SUM(G237,'単位修得状況確認表（共通教育科目等）'!R43,'単位修得状況確認表（専門教育科目）'!R79)","v":0}]
[null,"4年前期終了時",{"$f":"C238+'単位修得状況確認表（共通教育科目等）'!T18+'単位修得状況確認表（共通教育科目等）'!T38+'単位修得状況確認表（専門教育科目）'!T37+'単位修得状況確認表（専門教育科目）'!T61+'単位修得状況確認表（専門教育科目）'!T73","v":0},"",0,{"$f":"SUM(F238,'単位修得状況確認表（共通教育科目等）'!T42,'単位修得状況確認表（専門教育科目）'!T78)","v":0},{"$f":"SUM(G238,'単位修得状況確認表（共通教育科目等）'!T43,'単位修得状況確認表（専門教育科目）'!T79)","v":0}]
[null,"4年後期終了時",{"$f":"C239+'単位修得状況確認表（共通教育科目等）'!W18+'単位修得状況確認表（共通教育科目等）'!W38+'単位修得状況確認表（専門教育科目）'!W37+'単位修得状況確認表（専門教育科目）'!W61+'単位修得状況確認表（専門教育科目）'!W73","v":0},"",0,{"$f":"SUM(F239,'単位修得状況確認表（共通教育科目等）'!V42,'単位修得状況確認表（専門教育科目）'!V78)","v":0},{"$f":"SUM(G239,'単位修得状況確認表（共通教育科目等）'!V43,'単位修得状況確認表（専門教育科目）'!V79)","v":0}]